[Event "Live Chess"]
[Site "Chess.com"]
[Date "2011.01.28"]
[Round "-"]
[White "TimArnett"]
[Black "hipposcottimus"]
[Result "1-0"]
[CurrentPosition "3r3k/pp3B1p/2p3p1/8/PPP1p3/6qP/1B4P1/5R1K b - -"]
[Timezone "UTC"]
[ECO "A02"]
[ECOUrl "https://www.chess.com/openings/Birds-Opening-1...Nf6"]
[UTCDate "2011.01.28"]
[UTCTime "22:42:30"]
[WhiteElo "1556"]
[BlackElo "1541"]
[TimeControl "60"]
[Termination "TimArnett won on time"]
[StartTime "22:42:30"]
[EndDate "2011.01.28"]
[EndTime "22:44:28"]
[Link "https://www.chess.com/game/live/92414664"]

1. f4 {[%clk 0:01:00]} 1... Nf6 {[%clk 0:01:00]} 2. d3 {[%clk 0:00:59.2]} 2... d5 {[%clk 0:00:58.5]} 3. f5 {[%clk 0:00:57.6]} 3... Bxf5 {[%clk 0:00:56.2]} 4. Nf3 {[%clk 0:00:57.2]} 4... Bg4 {[%clk 0:00:54.5]} 5. h3 {[%clk 0:00:55.4]} 5... Bxf3 {[%clk 0:00:53.6]} 6. exf3 {[%clk 0:00:54.9]} 6... e5 {[%clk 0:00:53.3]} 7. Be2 {[%clk 0:00:53.9]} 7... Bb4+ {[%clk 0:00:51.9]} 8. c3 {[%clk 0:00:51.6]} 8... Bc5 {[%clk 0:00:51.6]} 9. b4 {[%clk 0:00:50.7]} 9... Bd6 {[%clk 0:00:43.3]} 10. a4 {[%clk 0:00:49.7]} 10... O-O {[%clk 0:00:41.6]} 11. O-O {[%clk 0:00:48]} 11... c6 {[%clk 0:00:40.5]} 12. Nd2 {[%clk 0:00:46]} 12... Qc7 {[%clk 0:00:37]} 13. Rf2 {[%clk 0:00:45.2]} 13... e4 {[%clk 0:00:36.2]} 14. fxe4 {[%clk 0:00:42.3]} 14... Bh2+ {[%clk 0:00:35.2]} 15. Kh1 {[%clk 0:00:41]} 15... Bg3 {[%clk 0:00:34.3]} 16. Rf3 {[%clk 0:00:39.3]} 16... dxe4 {[%clk 0:00:33.7]} 17. dxe4 {[%clk 0:00:37.8]} 17... Rd8 {[%clk 0:00:30.5]} 18. Bb2 {[%clk 0:00:29.9]} 18... Nxe4 {[%clk 0:00:29.4]} 19. Nxe4 {[%clk 0:00:27.9]} 19... Rxd1+ {[%clk 0:00:27.4]} 20. Rxd1 {[%clk 0:00:27.6]} 20... Na6 {[%clk 0:00:26.2]} 21. Rxg3 {[%clk 0:00:25.5]} 21... f5 {[%clk 0:00:18.7]} 22. Bc4+ {[%clk 0:00:23.8]} 22... Kh8 {[%clk 0:00:16.5]} 23. Bxa6 {[%clk 0:00:21.2]} 23... fxe4 {[%clk 0:00:14.1]} 24. Bc4 {[%clk 0:00:16]} 24... Qxg3 {[%clk 0:00:12.2]} 25. Rf1 {[%clk 0:00:12.2]} 25... Rd8 {[%clk 0:00:10.9]} 26. Bf7 {[%clk 0:00:08.9]} 26... g6 {[%clk 0:00:09.2]} 27. c4+ {[%clk 0:00:06.9]} 1-0

[Event "Live Chess"]
[Site "Chess.com"]
[Date "2011.01.28"]
[Round "-"]
[White "hipposcottimus"]
[Black "TimArnett"]
[Result "1-0"]
[CurrentPosition "r4q2/pb1k4/1p1N1B2/3P3Q/4P3/2N5/PP3KPP/R6R b - -"]
[Timezone "UTC"]
[ECO "C40"]
[ECOUrl "https://www.chess.com/openings/Kings-Pawn-Opening-Kings-Knight-Variation"]
[UTCDate "2011.01.28"]
[UTCTime "22:40:02"]
[WhiteElo "1541"]
[BlackElo "1556"]
[TimeControl "60"]
[Termination "hipposcottimus won on time"]
[StartTime "22:40:02"]
[EndDate "2011.01.28"]
[EndTime "22:42:02"]
[Link "https://www.chess.com/game/live/92414068"]

1. e4 {[%clk 0:01:00]} 1... e5 {[%clk 0:01:00]} 2. Nf3 {[%clk 0:00:58.1]} 2... b6 {[%clk 0:00:59.7]} 3. d4 {[%clk 0:00:57.2]} 3... Bb7 {[%clk 0:00:58.9]} 4. d5 {[%clk 0:00:56.2]} 4... c6 {[%clk 0:00:57.4]} 5. c4 {[%clk 0:00:55.2]} 5... cxd5 {[%clk 0:00:55.9]} 6. cxd5 {[%clk 0:00:55]} 6... Bc5 {[%clk 0:00:52.9]} 7. Nc3 {[%clk 0:00:53.7]} 7... g5 {[%clk 0:00:50.9]} 8. Bxg5 {[%clk 0:00:51]} 8... f6 {[%clk 0:00:49.2]} 9. Bh4 {[%clk 0:00:49.5]} 9... Nh6 {[%clk 0:00:47.5]} 10. Be2 {[%clk 0:00:48]} 10... Rg8 {[%clk 0:00:42.3]} 11. Qd2 {[%clk 0:00:39.8]} 11... d6 {[%clk 0:00:39.6]} 12. Qxh6 {[%clk 0:00:38.4]} 12... Nd7 {[%clk 0:00:36.9]} 13. Qxh7 {[%clk 0:00:36.6]} 13... Bxf2+ {[%clk 0:00:28.3]} 14. Kxf2 {[%clk 0:00:30.3]} 14... Rf8 {[%clk 0:00:25]} 15. Bb5 {[%clk 0:00:25.6]} 15... Rf7 {[%clk 0:00:23.8]} 16. Qh8+ {[%clk 0:00:21.5]} 16... Rf8 {[%clk 0:00:23.1]} 17. Qh5+ {[%clk 0:00:20.1]} 17... Rf7 {[%clk 0:00:16.2]} 18. Bxd7+ {[%clk 0:00:16.4]} 18... Qxd7 {[%clk 0:00:14.1]} 19. Nxe5 {[%clk 0:00:16]} 19... Qe7 {[%clk 0:00:09.6]} 20. Nxf7 {[%clk 0:00:14.3]} 20... Qf8 {[%clk 0:00:01.9]} 21. Nxd6+ {[%clk 0:00:11.6]} 21... Kd7 {[%clk 0:00:01.2]} 22. Bxf6 {[%clk 0:00:10.3]} 1-0

[Event "Live Chess"]
[Site "Chess.com"]
[Date "2011.01.28"]
[Round "-"]
[White "TimArnett"]
[Black "hipposcottimus"]
[Result "0-1"]
[CurrentPosition "2kr3r/ppp1nppp/1b6/8/1P4P1/2P1pP2/P3Kq2/RN1Q4 w - -"]
[Timezone "UTC"]
[ECO "A02"]
[ECOUrl "https://www.chess.com/openings/Birds-Opening-Froms-Gambit-2.fxe5"]
[UTCDate "2011.01.28"]
[UTCTime "22:38:07"]
[WhiteElo "1556"]
[BlackElo "1541"]
[TimeControl "60"]
[Termination "hipposcottimus won by checkmate"]
[StartTime "22:38:07"]
[EndDate "2011.01.28"]
[EndTime "22:39:49"]
[Link "https://www.chess.com/game/live/92413566"]

1. f4 {[%clk 0:01:00]} 1... e5 {[%clk 0:01:00]} 2. fxe5 {[%clk 0:00:58.6]} 2... d5 {[%clk 0:00:59.4]} 3. e6 {[%clk 0:00:57]} 3... Bxe6 {[%clk 0:00:57.2]} 4. Nf3 {[%clk 0:00:55.8]} 4... Nc6 {[%clk 0:00:56.8]} 5. g3 {[%clk 0:00:55.1]} 5... Qf6 {[%clk 0:00:54.8]} 6. Bg2 {[%clk 0:00:54.3]} 6... Bc5 {[%clk 0:00:53.3]} 7. d4 {[%clk 0:00:51.5]} 7... Nxd4 {[%clk 0:00:48.5]} 8. c3 {[%clk 0:00:46.5]} 8... Nxf3+ {[%clk 0:00:46.6]} 9. Bxf3 {[%clk 0:00:44.7]} 9... Bg4 {[%clk 0:00:45]} 10. b4 {[%clk 0:00:42.8]} 10... Bxf3 {[%clk 0:00:37.4]} 11. exf3 {[%clk 0:00:37.5]} 11... Bb6 {[%clk 0:00:31.9]} 12. Rf1 {[%clk 0:00:36.4]} 12... Ne7 {[%clk 0:00:29.3]} 13. g4 {[%clk 0:00:32.9]} 13... Qh4+ {[%clk 0:00:25.8]} 14. Kd2 {[%clk 0:00:28.1]} 14... Qxh2+ {[%clk 0:00:24.8]} 15. Kd3 {[%clk 0:00:23.4]} 15... O-O-O {[%clk 0:00:19.4]} 16. Be3 {[%clk 0:00:20.5]} 16... d4 {[%clk 0:00:18.5]} 17. Rf2 {[%clk 0:00:18.1]} 17... dxe3+ {[%clk 0:00:17]} 18. Ke2 {[%clk 0:00:12.5]} 18... Qxf2# {[%clk 0:00:14.9]} 0-1

[Event "Live Chess"]
[Site "Chess.com"]
[Date "2011.01.28"]
[Round "-"]
[White "hipposcottimus"]
[Black "TimArnett"]
[Result "1-0"]
[CurrentPosition "rn3kR1/p2pq3/bp3N2/2pPp2Q/2P1P3/2N5/PP3PP1/R3KB2 b Q -"]
[Timezone "UTC"]
[ECO "B00"]
[ECOUrl "https://www.chess.com/openings/Owens-Defense-2.d4-Bb7"]
[UTCDate "2011.01.28"]
[UTCTime "22:36:34"]
[WhiteElo "1541"]
[BlackElo "1556"]
[TimeControl "60"]
[Termination "hipposcottimus won by checkmate"]
[StartTime "22:36:34"]
[EndDate "2011.01.28"]
[EndTime "22:37:53"]
[Link "https://www.chess.com/game/live/92413159"]

1. e4 {[%clk 0:01:00]} 1... b6 {[%clk 0:01:00]} 2. d4 {[%clk 0:00:58.4]} 2... Bb7 {[%clk 0:00:59.7]} 3. d5 {[%clk 0:00:58.1]} 3... e5 {[%clk 0:00:58.9]} 4. c4 {[%clk 0:00:57.8]} 4... c5 {[%clk 0:00:56.8]} 5. Nf3 {[%clk 0:00:55.7]} 5... Qe7 {[%clk 0:00:56]} 6. Nc3 {[%clk 0:00:54.6]} 6... Ba6 {[%clk 0:00:53.9]} 7. Bg5 {[%clk 0:00:53.5]} 7... f6 {[%clk 0:00:52.2]} 8. Be3 {[%clk 0:00:50.1]} 8... g5 {[%clk 0:00:51.8]} 9. h3 {[%clk 0:00:46.8]} 9... g4 {[%clk 0:00:51.5]} 10. hxg4 {[%clk 0:00:45.9]} 10... Bg7 {[%clk 0:00:50.2]} 11. g5 {[%clk 0:00:41.2]} 11... fxg5 {[%clk 0:00:48.7]} 12. Bxg5 {[%clk 0:00:40.4]} 12... Bf6 {[%clk 0:00:47.8]} 13. Rh5 {[%clk 0:00:39.3]} 13... Bxg5 {[%clk 0:00:46.5]} 14. Nxg5 {[%clk 0:00:38.8]} 14... Nf6 {[%clk 0:00:45.2]} 15. Rh6 {[%clk 0:00:34.8]} 15... Rg8 {[%clk 0:00:42.7]} 16. Nxh7 {[%clk 0:00:32.6]} 16... Rg7 {[%clk 0:00:39.1]} 17. Nxf6+ {[%clk 0:00:29.2]} 17... Kf7 {[%clk 0:00:36.7]} 18. Qh5+ {[%clk 0:00:27.1]} 18... Kf8 {[%clk 0:00:33.1]} 19. Rh8+ {[%clk 0:00:26.3]} 19... Rg8 {[%clk 0:00:26]} 20. Rxg8# {[%clk 0:00:25.4]} 1-0

[Event "Live Chess"]
[Site "Chess.com"]
[Date "2011.01.28"]
[Round "-"]
[White "Mashdy"]
[Black "hipposcottimus"]
[Result "1-0"]
[CurrentPosition "r2k3r/pppn1p1p/5p2/5B2/5B2/2P3P1/P1P2K1P/R2QR3 w - -"]
[Timezone "UTC"]
[ECO "C20"]
[ECOUrl "https://www.chess.com/openings/Kings-Pawn-Opening-Leonardis-Variation-2...Nf6-3.Nf3"]
[UTCDate "2011.01.28"]
[UTCTime "22:32:21"]
[WhiteElo "1377"]
[BlackElo "1546"]
[TimeControl "60"]
[Termination "Mashdy won by resignation"]
[StartTime "22:32:21"]
[EndDate "2011.01.28"]
[EndTime "22:33:32"]
[Link "https://www.chess.com/game/live/92411975"]

1. e4 {[%clk 0:01:00]} 1... e5 {[%clk 0:01:00]} 2. d3 {[%clk 0:00:59.8]} 2... Nf6 {[%clk 0:00:58.1]} 3. Nf3 {[%clk 0:00:59.3]} 3... d5 {[%clk 0:00:57.8]} 4. Nc3 {[%clk 0:00:58.2]} 4... dxe4 {[%clk 0:00:57.3]} 5. dxe4 {[%clk 0:00:56.4]} 5... Bb4 {[%clk 0:00:54.6]} 6. Bd2 {[%clk 0:00:54.8]} 6... Bxc3 {[%clk 0:00:53.5]} 7. bxc3 {[%clk 0:00:52.8]} 7... Nxe4 {[%clk 0:00:51.9]} 8. Bd3 {[%clk 0:00:52.4]} 8... Bf5 {[%clk 0:00:45.2]} 9. Nxe5 {[%clk 0:00:49.7]} 9... Nxf2 {[%clk 0:00:40.4]} 10. Kxf2 {[%clk 0:00:48.3]} 10... Qh4+ {[%clk 0:00:34.3]} 11. g3 {[%clk 0:00:46.3]} 11... Bg4 {[%clk 0:00:28.1]} 12. Nxg4 {[%clk 0:00:41.9]} 12... Qf6+ {[%clk 0:00:27.8]} 13. Nxf6+ {[%clk 0:00:39.7]} 13... gxf6 {[%clk 0:00:27.5]} 14. Re1+ {[%clk 0:00:37.3]} 14... Kd7 {[%clk 0:00:26]} 15. Bf5+ {[%clk 0:00:35.4]} 15... Kd8 {[%clk 0:00:25.6]} 16. Bf4+ {[%clk 0:00:33.6]} 16... Nd7 {[%clk 0:00:23.9]} 1-0

[Event "Live Chess"]
[Site "Chess.com"]
[Date "2011.01.28"]
[Round "-"]
[White "goranb"]
[Black "hipposcottimus"]
[Result "1-0"]
[CurrentPosition "1R2k3/p1R3pp/2P5/8/8/8/P4PKP/8 b - -"]
[Timezone "UTC"]
[ECO "C44"]
[ECOUrl "https://www.chess.com/openings/Kings-Pawn-Opening-Kings-Knight-Variation-2...Nc6-3.d3-Nf6"]
[UTCDate "2011.01.28"]
[UTCTime "22:29:54"]
[WhiteElo "1552"]
[BlackElo "1557"]
[TimeControl "60"]
[Termination "goranb won by checkmate"]
[StartTime "22:29:54"]
[EndDate "2011.01.28"]
[EndTime "22:31:56"]
[Link "https://www.chess.com/game/live/92411267"]

1. e4 {[%clk 0:01:00]} 1... e5 {[%clk 0:01:00]} 2. Nf3 {[%clk 0:00:59.5]} 2... Nc6 {[%clk 0:00:58.4]} 3. d3 {[%clk 0:00:59.1]} 3... Nf6 {[%clk 0:00:56.9]} 4. c4 {[%clk 0:00:58.6]} 4... Bc5 {[%clk 0:00:54.4]} 5. Be2 {[%clk 0:00:58.5]} 5... d5 {[%clk 0:00:51.8]} 6. Nc3 {[%clk 0:00:58.4]} 6... Bb4 {[%clk 0:00:49.2]} 7. cxd5 {[%clk 0:00:56.1]} 7... Bg4 {[%clk 0:00:44.6]} 8. dxc6 {[%clk 0:00:53.5]} 8... Bxf3 {[%clk 0:00:43]} 9. Bxf3 {[%clk 0:00:52.4]} 9... Qd4 {[%clk 0:00:42.7]} 10. O-O {[%clk 0:00:50]} 10... O-O {[%clk 0:00:41.8]} 11. Nd5 {[%clk 0:00:47.2]} 11... Nxd5 {[%clk 0:00:39.3]} 12. exd5 {[%clk 0:00:46]} 12... bxc6 {[%clk 0:00:39]} 13. Be3 {[%clk 0:00:44.9]} 13... Qxb2 {[%clk 0:00:36.9]} 14. dxc6 {[%clk 0:00:43.3]} 14... f5 {[%clk 0:00:30.6]} 15. Rb1 {[%clk 0:00:42.5]} 15... Qa3 {[%clk 0:00:29.2]} 16. Bd2 {[%clk 0:00:40.5]} 16... Bc5 {[%clk 0:00:26.6]} 17. Qb3+ {[%clk 0:00:36.8]} 17... Rf7 {[%clk 0:00:22.2]} 18. Qxa3 {[%clk 0:00:35.2]} 18... Bxa3 {[%clk 0:00:20]} 19. Rb3 {[%clk 0:00:34.6]} 19... Rf6 {[%clk 0:00:15.8]} 20. Rxa3 {[%clk 0:00:31]} 20... Rb8 {[%clk 0:00:15.4]} 21. Rb3 {[%clk 0:00:29.7]} 21... Rd8 {[%clk 0:00:13.7]} 22. Rfb1 {[%clk 0:00:26.7]} 22... Rdd6 {[%clk 0:00:13.2]} 23. Rb7 {[%clk 0:00:23.1]} 23... Rf8 {[%clk 0:00:12.9]} 24. Bb4 {[%clk 0:00:17.2]} 24... e4 {[%clk 0:00:07.5]} 25. dxe4 {[%clk 0:00:15.4]} 25... fxe4 {[%clk 0:00:06.1]} 26. Bxd6 {[%clk 0:00:15]} 26... exf3 {[%clk 0:00:04.7]} 27. Bxf8 {[%clk 0:00:13.1]} 27... fxg2 {[%clk 0:00:04.4]} 28. Kxg2 {[%clk 0:00:11.7]} 28... Kxf8 {[%clk 0:00:04.1]} 29. Rxc7 {[%clk 0:00:10.7]} 29... Ke8 {[%clk 0:00:02.8]} 30. Rb8# {[%clk 0:00:10.2]} 1-0

[Event "Live Chess"]
[Site "Chess.com"]
[Date "2011.01.28"]
[Round "-"]
[White "hipposcottimus"]
[Black "goranb"]
[Result "0-1"]
[CurrentPosition "5rk1/1p3pp1/p2p3p/3P4/5P2/4BP2/PPq1r2P/R4RK1 b - -"]
[Timezone "UTC"]
[ECO "C41"]
[ECOUrl "https://www.chess.com/openings/Philidor-Defense-3.Bc4"]
[UTCDate "2011.01.28"]
[UTCTime "22:28:20"]
[WhiteElo "1566"]
[BlackElo "1543"]
[TimeControl "60"]
[Termination "goranb won by resignation"]
[StartTime "22:28:20"]
[EndDate "2011.01.28"]
[EndTime "22:29:43"]
[Link "https://www.chess.com/game/live/92410854"]

1. e4 {[%clk 0:01:00]} 1... e5 {[%clk 0:01:00]} 2. Nf3 {[%clk 0:00:59.3]} 2... d6 {[%clk 0:00:59.6]} 3. Bc4 {[%clk 0:00:58.9]} 3... h6 {[%clk 0:00:58.3]} 4. d4 {[%clk 0:00:58.3]} 4... exd4 {[%clk 0:00:56.6]} 5. Nxd4 {[%clk 0:00:57]} 5... Nf6 {[%clk 0:00:56.5]} 6. Nc3 {[%clk 0:00:56.2]} 6... Be7 {[%clk 0:00:56.4]} 7. f4 {[%clk 0:00:53.3]} 7... O-O {[%clk 0:00:56.3]} 8. O-O {[%clk 0:00:51.5]} 8... c5 {[%clk 0:00:55.8]} 9. e5 {[%clk 0:00:50.1]} 9... cxd4 {[%clk 0:00:54]} 10. exf6 {[%clk 0:00:49.3]} 10... Bxf6 {[%clk 0:00:53.1]} 11. Nd5 {[%clk 0:00:48.5]} 11... Be6 {[%clk 0:00:49.9]} 12. Nxf6+ {[%clk 0:00:47.2]} 12... Qxf6 {[%clk 0:00:49]} 13. Bb5 {[%clk 0:00:46.4]} 13... a6 {[%clk 0:00:46.8]} 14. Bd3 {[%clk 0:00:46.1]} 14... Bf5 {[%clk 0:00:44.7]} 15. Qf3 {[%clk 0:00:45.1]} 15... Nc6 {[%clk 0:00:44]} 16. Be4 {[%clk 0:00:40.9]} 16... Bxe4 {[%clk 0:00:41.8]} 17. Qxe4 {[%clk 0:00:39.3]} 17... Rae8 {[%clk 0:00:41.4]} 18. Qf3 {[%clk 0:00:35.5]} 18... Qf5 {[%clk 0:00:39.6]} 19. c3 {[%clk 0:00:32.7]} 19... Qc2 {[%clk 0:00:36.9]} 20. cxd4 {[%clk 0:00:29.6]} 20... Re2 {[%clk 0:00:33.7]} 21. d5 {[%clk 0:00:27.2]} 21... Nd4 {[%clk 0:00:31.9]} 22. Be3 {[%clk 0:00:20.6]} 22... Nxf3+ {[%clk 0:00:30.1]} 23. gxf3 {[%clk 0:00:18.5]} 0-1

[Event "Live Chess"]
[Site "Chess.com"]
[Date "2011.01.28"]
[Round "-"]
[White "jepone"]
[Black "hipposcottimus"]
[Result "1-0"]
[CurrentPosition "r3k2r/ppp3pp/2n1bR2/1B1pN3/3Q4/8/PPP3PP/RN4K1 b kq -"]
[Timezone "UTC"]
[ECO "C36"]
[ECOUrl "https://www.chess.com/openings/Kings-Gambit-Accepted-Modern-Defense"]
[UTCDate "2011.01.28"]
[UTCTime "22:26:05"]
[WhiteElo "1526"]
[BlackElo "1575"]
[TimeControl "60"]
[Termination "jepone won on time"]
[StartTime "22:26:05"]
[EndDate "2011.01.28"]
[EndTime "22:27:11"]
[Link "https://www.chess.com/game/live/92410160"]

1. e4 {[%clk 0:01:00]} 1... e5 {[%clk 0:01:00]} 2. f4 {[%clk 0:00:58.7]} 2... d5 {[%clk 0:00:57.3]} 3. Nf3 {[%clk 0:00:58.4]} 3... exf4 {[%clk 0:00:54.8]} 4. e5 {[%clk 0:00:56.3]} 4... Be6 {[%clk 0:00:52.1]} 5. d4 {[%clk 0:00:54.9]} 5... Nc6 {[%clk 0:00:50.2]} 6. Bxf4 {[%clk 0:00:53.7]} 6... f6 {[%clk 0:00:48.9]} 7. Bb5 {[%clk 0:00:51.5]} 7... fxe5 {[%clk 0:00:47.7]} 8. Bxe5 {[%clk 0:00:50.7]} 8... Qe7 {[%clk 0:00:41.3]} 9. O-O {[%clk 0:00:48.9]} 9... Nf6 {[%clk 0:00:39.7]} 10. Bxf6 {[%clk 0:00:47.2]} 10... Qxf6 {[%clk 0:00:38.8]} 11. Ne5 {[%clk 0:00:45.6]} 11... Bc5 {[%clk 0:00:28.2]} 12. Rxf6 {[%clk 0:00:37.2]} 12... Bxd4+ {[%clk 0:00:25.9]} 13. Qxd4 {[%clk 0:00:35]} 1-0

[Event "Live Chess"]
[Site "Chess.com"]
[Date "2011.01.28"]
[Round "-"]
[White "paleoliberal"]
[Black "hipposcottimus"]
[Result "1-0"]
[CurrentPosition "rn4kr/p1pq3p/5pnB/7Q/2pbP1B1/3P4/PP3PPP/R3K2R b KQ -"]
[Timezone "UTC"]
[ECO "C40"]
[ECOUrl "https://www.chess.com/openings/Kings-Pawn-Opening-Kings-Knight-Elephant-Gambit"]
[UTCDate "2011.01.28"]
[UTCTime "22:21:24"]
[WhiteElo "1447"]
[BlackElo "1584"]
[TimeControl "60"]
[Termination "paleoliberal won on time"]
[StartTime "22:21:24"]
[EndDate "2011.01.28"]
[EndTime "22:23:06"]
[Link "https://www.chess.com/game/live/92408962"]

1. e4 {[%clk 0:01:00]} 1... e5 {[%clk 0:01:00]} 2. Nf3 {[%clk 0:00:59.2]} 2... d5 {[%clk 0:00:58.5]} 3. c4 {[%clk 0:00:55.6]} 3... dxc4 {[%clk 0:00:56]} 4. Nc3 {[%clk 0:00:53]} 4... Be6 {[%clk 0:00:53.7]} 5. Nxe5 {[%clk 0:00:51.3]} 5... f6 {[%clk 0:00:51.1]} 6. Nxc4 {[%clk 0:00:48.4]} 6... Bc5 {[%clk 0:00:44.4]} 7. Na4 {[%clk 0:00:45.3]} 7... Bd4 {[%clk 0:00:42.1]} 8. d3 {[%clk 0:00:41.4]} 8... b5 {[%clk 0:00:41.2]} 9. Bf4 {[%clk 0:00:33.4]} 9... bxc4 {[%clk 0:00:38.3]} 10. Nc5 {[%clk 0:00:31.6]} 10... Ne7 {[%clk 0:00:29.3]} 11. Nxe6 {[%clk 0:00:29.8]} 11... Qd7 {[%clk 0:00:23.4]} 12. Nxg7+ {[%clk 0:00:27]} 12... Kf7 {[%clk 0:00:22.2]} 13. Qh5+ {[%clk 0:00:22.2]} 13... Kxg7 {[%clk 0:00:19.3]} 14. Bh6+ {[%clk 0:00:20.7]} 14... Kg8 {[%clk 0:00:14.6]} 15. Be2 {[%clk 0:00:17.7]} 15... Ng6 {[%clk 0:00:12.6]} 16. Bg4 {[%clk 0:00:14.1]} 1-0

[Event "Live Chess"]
[Site "Chess.com"]
[Date "2011.01.28"]
[Round "-"]
[White "paleoliberal"]
[Black "hipposcottimus"]
[Result "1-0"]
[CurrentPosition "4r3/ppp2pPk/8/5P2/1nP1p3/1Nq5/2P2P2/1K5Q b - -"]
[Timezone "UTC"]
[ECO "C55"]
[ECOUrl "https://www.chess.com/openings/Italian-Game-Two-Knights-Open-4...Nxe4"]
[UTCDate "2011.01.28"]
[UTCTime "22:18:29"]
[WhiteElo "1440"]
[BlackElo "1589"]
[TimeControl "60"]
[Termination "paleoliberal won on time"]
[StartTime "22:18:29"]
[EndDate "2011.01.28"]
[EndTime "22:20:35"]
[Link "https://www.chess.com/game/live/92408039"]

1. e4 {[%clk 0:01:00]} 1... e5 {[%clk 0:01:00]} 2. Nf3 {[%clk 0:00:59.9]} 2... Nc6 {[%clk 0:00:59.5]} 3. Bc4 {[%clk 0:00:59.8]} 3... Nf6 {[%clk 0:00:59.1]} 4. d4 {[%clk 0:00:59.2]} 4... Nxe4 {[%clk 0:00:54.8]} 5. Qe2 {[%clk 0:00:56.7]} 5... d5 {[%clk 0:00:53.5]} 6. Bxd5 {[%clk 0:00:54]} 6... Qxd5 {[%clk 0:00:52.5]} 7. Nc3 {[%clk 0:00:53.2]} 7... Bb4 {[%clk 0:00:49.9]} 8. Bd2 {[%clk 0:00:50.5]} 8... Nxd2 {[%clk 0:00:48.9]} 9. Nxd2 {[%clk 0:00:49.7]} 9... Bxc3 {[%clk 0:00:47.9]} 10. bxc3 {[%clk 0:00:48.8]} 10... e4 {[%clk 0:00:44.9]} 11. c4 {[%clk 0:00:47.5]} 11... Qxd4 {[%clk 0:00:42.9]} 12. O-O-O {[%clk 0:00:45.2]} 12... O-O {[%clk 0:00:33.9]} 13. Nb3 {[%clk 0:00:38.2]} 13... Qb6 {[%clk 0:00:25]} 14. h4 {[%clk 0:00:36.5]} 14... Bf5 {[%clk 0:00:24.1]} 15. g4 {[%clk 0:00:32.1]} 15... Nb4 {[%clk 0:00:23.7]} 16. gxf5 {[%clk 0:00:27.7]} 16... Nxa2+ {[%clk 0:00:21.5]} 17. Kb2 {[%clk 0:00:25.5]} 17... Nb4 {[%clk 0:00:14.7]} 18. h5 {[%clk 0:00:23.3]} 18... Qf6+ {[%clk 0:00:12.9]} 19. Kb1 {[%clk 0:00:18.7]} 19... Qc3 {[%clk 0:00:08.2]} 20. h6 {[%clk 0:00:15.6]} 20... Rfe8 {[%clk 0:00:05.6]} 21. hxg7 {[%clk 0:00:12.4]} 21... Rad8 {[%clk 0:00:02.6]} 22. Rxh7 {[%clk 0:00:11.2]} 22... Rxd1+ {[%clk 0:00:01.2]} 23. Qxd1 {[%clk 0:00:08.6]} 23... Kxh7 {[%clk 0:00:00.5]} 24. Qh1+ {[%clk 0:00:05.8]} 1-0

[Event "Live Chess"]
[Site "Chess.com"]
[Date "2011.01.28"]
[Round "-"]
[White "hipposcottimus"]
[Black "paleoliberal"]
[Result "1-0"]
[CurrentPosition "4rR1k/pp2N1pp/8/2pp4/8/8/qP4PP/5RK1 b - -"]
[Timezone "UTC"]
[ECO "C45"]
[ECOUrl "https://www.chess.com/openings/Scotch-Game-Scotch-Gambit-Dubois-Reti-Defense"]
[UTCDate "2011.01.28"]
[UTCTime "22:16:05"]
[WhiteElo "1600"]
[BlackElo "1427"]
[TimeControl "60"]
[Termination "hipposcottimus won on time"]
[StartTime "22:16:05"]
[EndDate "2011.01.28"]
[EndTime "22:17:52"]
[Link "https://www.chess.com/game/live/92407421"]

1. e4 {[%clk 0:01:00]} 1... e5 {[%clk 0:01:00]} 2. Nf3 {[%clk 0:00:59.6]} 2... Nc6 {[%clk 0:00:59.9]} 3. Bc4 {[%clk 0:00:58.7]} 3... Nf6 {[%clk 0:00:59.2]} 4. d4 {[%clk 0:00:57.7]} 4... exd4 {[%clk 0:00:57.7]} 5. Nxd4 {[%clk 0:00:55.3]} 5... Nxd4 {[%clk 0:00:55.1]} 6. Qxd4 {[%clk 0:00:55]} 6... c5 {[%clk 0:00:49.7]} 7. Qe3 {[%clk 0:00:53.3]} 7... Bd6 {[%clk 0:00:47.3]} 8. f4 {[%clk 0:00:52.2]} 8... O-O {[%clk 0:00:44.2]} 9. e5 {[%clk 0:00:51.5]} 9... Ng4 {[%clk 0:00:40.9]} 10. Qe2 {[%clk 0:00:47.6]} 10... Re8 {[%clk 0:00:39.3]} 11. Qxg4 {[%clk 0:00:46.4]} 11... Bxe5 {[%clk 0:00:34.9]} 12. Bxf7+ {[%clk 0:00:45.2]} 12... Kxf7 {[%clk 0:00:28.2]} 13. fxe5 {[%clk 0:00:44.4]} 13... Rxe5+ {[%clk 0:00:26]} 14. Kf2 {[%clk 0:00:44]} 14... d5 {[%clk 0:00:23.2]} 15. Bf4 {[%clk 0:00:43.5]} 15... Bxg4 {[%clk 0:00:21]} 16. Bxe5 {[%clk 0:00:41.9]} 16... Qg5 {[%clk 0:00:18.4]} 17. Rf1 {[%clk 0:00:41.1]} 17... Qxe5 {[%clk 0:00:17]} 18. Kg1+ {[%clk 0:00:40]} 18... Kg8 {[%clk 0:00:16]} 19. Nd2 {[%clk 0:00:39.7]} 19... Qd4+ {[%clk 0:00:14.3]} 20. Rf2 {[%clk 0:00:36.6]} 20... Bf5 {[%clk 0:00:10.9]} 21. Nf3 {[%clk 0:00:35.5]} 21... Qe3 {[%clk 0:00:08.9]} 22. Rf1 {[%clk 0:00:35.1]} 22... Bxc2 {[%clk 0:00:07.5]} 23. Ne1 {[%clk 0:00:33.8]} 23... Qd4 {[%clk 0:00:05]} 24. Nxc2 {[%clk 0:00:32.6]} 24... Qc4 {[%clk 0:00:03.2]} 25. Ne3 {[%clk 0:00:31.3]} 25... Qxa2 {[%clk 0:00:02.4]} 26. Nf5 {[%clk 0:00:30.5]} 26... Re8 {[%clk 0:00:02]} 27. Ne7+ {[%clk 0:00:28]} 27... Kh8 {[%clk 0:00:00.1]} 28. Rf8+ {[%clk 0:00:27.6]} 1-0